fUSD/lending_fUSD_20241205
["ID","MTS","AMOUNT","RATE_DAILY","PERIOD"]
[344386694,1733401841044,-797.76,7.497e-05,2]
[344386695,1733401841054,-797.76,7.497e-05,2]
[344386696,1733401841063,-797.76,7.497e-05,2]
[344386697,1733401841072,-500.0,7.497e-05,2]
[344386698,1733401841082,-500.0,7.497e-05,2]
[344386699,1733401841091,-500.0,7.497e-05,2]
[344386700,1733401841101,-500.0,7.497e-05,2]
[344386701,1733401841110,-500.29319421,7.497e-05,2]
[344386702,1733401841119,-628.12971976,7.497e-05,2]
[344386703,1733401841129,-500.0,7.497e-05,2]
[344386704,1733401841138,-500.0,7.497e-05,2]
[344386705,1733401841152,-645.08365397,7.497e-05,2]
[344386706,1733401841161,-500.0,7.497e-05,2]
[344386707,1733401841170,-286.05358655,7.497e-05,2]
[344386708,1733401841180,-500.0,7.497e-05,2]
[344386709,1733401841190,-670.5,7.497e-05,2]
[344386710,1733401841200,-500.0,7.497e-05,2]
[344386711,1733401841209,-500.0,7.497e-05,2]
[344386712,1733401841218,-500.0,7.497e-05,2]
[344386713,1733401841227,-500.0,7.497e-05,2]
[344386714,1733401841237,-500.0,7.497e-05,2]
[344386715,1733401841246,-500.0,7.497e-05,2]
[344386716,1733401841255,-500.0,7.497e-05,2]
[344386717,1733401841264,-500.0,7.497e-05,2]
[344386718,1733401841273,-500.0,7.497e-05,2]
[344386719,1733401841283,-500.0,7.497e-05,2]
[344386720,1733401841292,-668.96,7.497e-05,2]
[344386721,1733401841302,-500.0,7.497e-05,2]
[344386722,1733401841311,-668.96,7.497e-05,2]
[344386723,1733401841320,-500.0,7.497e-05,2]
[344386724,1733401841329,-500.0,7.497e-05,2]
[344386725,1733401841339,-500.0,7.497e-05,2]
[344386726,1733401841348,-500.0,7.497e-05,2]
[344386727,1733401841362,-500.0,7.497e-05,2]
[344386728,1733401841371,-500.0,7.497e-05,2]
[344386729,1733401841380,-501.11180025,7.497e-05,2]
[344386730,1733401841390,-500.0,7.497e-05,2]
[344386731,1733401841403,-500.0,7.497e-05,2]
[344386732,1733401841414,-500.0,7.497e-05,2]
[344386733,1733401841423,-500.0,7.497e-05,2]
[344386734,1733401841435,-500.0,7.497e-05,2]
[344386735,1733401841445,-501.65850199,7.497e-05,2]
[344386736,1733401841455,-601.866265,7.497e-05,2]
[344386737,1733401841464,-500.0,7.497e-05,2]
[344386738,1733401841473,-500.0,7.497e-05,2]
[344386739,1733401841482,-500.0,7.497e-05,2]
[344386740,1733401841492,-217.81399485,7.497e-05,2]
[344386741,1733401841501,-1271.63,7.497e-05,2]
[344386742,1733401841510,-1271.63,7.497e-05,2]
[344386743,1733401841520,-500.0,7.497e-05,2]
[344386744,1733401841529,-500.0,7.497e-05,2]
[344386745,1733401841540,-500.0,7.497e-05,2]
[344386746,1733401841549,-742.92,7.497e-05,2]
[344386747,1733401841560,-742.92,7.497e-05,2]
[344386748,1733401841570,-742.92,7.497e-05,2]
[344386749,1733401841579,-742.92,7.497e-05,2]
[344386750,1733401841589,-742.92,7.497e-05,2]
[344386751,1733401841601,-500.0,7.497e-05,2]
[344386752,1733401841611,-742.92,7.497e-05,2]
[344386753,1733401841622,-500.0,7.497e-05,2]
[344386754,1733401841632,-500.0,7.497e-05,2]
[344386755,1733401841645,-742.92,7.497e-05,2]
[344386756,1733401841657,-500.0,7.497e-05,2]
[344386757,1733401841667,-742.92,7.497e-05,2]
[344386758,1733401841678,-500.0,7.497e-05,2]
[344386759,1733401841688,-500.0,7.497e-05,2]
[344386760,1733401841698,-500.0,7.497e-05,2]
[344386761,1733401841709,-597.42354856,7.497e-05,2]
[344386762,1733401841720,-718.69,7.497e-05,2]
[344386763,1733401841730,-718.69,7.497e-05,2]
[344386764,1733401841740,-7500.0,7.497e-05,2]
[344386765,1733401841751,-7500.0,7.497e-05,2]
[344386766,1733401841761,-500.0,7.497e-05,2]
[344386767,1733401841770,-500.0,7.497e-05,2]
[344386768,1733401841780,-500.0,7.497e-05,2]
[344386769,1733401841789,-500.0,7.497e-05,2]
[344386770,1733401841798,-500.0,7.497e-05,2]
[344386771,1733401841808,-500.0,7.497e-05,2]
[344386772,1733401841818,-500.0,7.497e-05,2]
[344386773,1733401841828,-500.0,7.497e-05,2]
[344386774,1733401841837,-500.0,7.497e-05,2]
[344386775,1733401841846,-500.0,7.497e-05,2]
[344386776,1733401841856,-500.0,7.497e-05,2]
[344386777,1733401841865,-500.0,7.497e-05,2]
[344386778,1733401841875,-500.0,7.497e-05,2]
[344386779,1733401841884,-515.73830268,7.497e-05,2]
[344386780,1733401841897,-500.0,7.497e-05,2]
[344386781,1733401841907,-500.0,7.497e-05,2]
[344386782,1733401841917,-500.0,7.497e-05,2]
[344386783,1733401841927,-839.19,7.497e-05,2]
[344386784,1733401841936,-839.19,7.497e-05,2]
[344386785,1733401841945,-500.0,7.497e-05,2]
[344386786,1733401841954,-839.19,7.497e-05,2]
[344386787,1733401841963,-839.19,7.497e-05,2]
[344386788,1733401841973,-500.0,7.497e-05,2]
[344386789,1733401841983,-500.0,7.497e-05,2]
[344386790,1733401841992,-500.0,7.497e-05,2]
[344386791,1733401842003,-500.0,7.497e-05,2]
[344386792,1733401842012,-500.0,7.497e-05,2]
[344386793,1733401842022,-500.0,7.497e-05,2]
[344386794,1733401842032,-500.0,7.497e-05,2]
[344386795,1733401842042,-500.0,7.497e-05,2]
[344386796,1733401842051,-500.0,7.497e-05,2]
[344386797,1733401842062,-500.0,7.497e-05,2]
[344386798,1733401842071,-501.39028938,7.497e-05,2]
[344386799,1733401842081,-500.0,7.497e-05,2]
[344386800,1733401842090,-1040.5,7.497e-05,2]
[344386801,1733401842099,-500.0,7.497e-05,2]
[344386802,1733401842108,-1152.11,7.497e-05,2]
[344386803,1733401842118,-500.0,7.497e-05,2]
[344386804,1733401842127,-1152.11,7.497e-05,2]
[344386805,1733401842137,-500.0,7.497e-05,2]
[344386806,1733401842149,-500.0,7.497e-05,2]
[344386807,1733401842158,-790.27,7.497e-05,2]
[344386808,1733401842167,-790.27,7.497e-05,2]
[344386809,1733401842176,-790.27,7.497e-05,2]
[344386810,1733401842185,-790.27,7.497e-05,2]
[344386811,1733401842194,-500.0,7.497e-05,2]
[344386812,1733401842203,-790.27,7.497e-05,2]
[344386813,1733401842214,-790.27,7.497e-05,2]
[344386814,1733401842225,-790.27,7.497e-05,2]
[344386815,1733401842236,-790.27,7.497e-05,2]
[344386816,1733401842247,-391.44055003,7.497e-05,2]
[344386817,1733401842260,-500.0,7.497e-05,2]
[344386818,1733401842270,-501.79485909,7.497e-05,2]
[344386819,1733401842280,-286.81912841,7.497e-05,2]
[344386820,1733401842290,-500.0,7.497e-05,2]
[344386821,1733401842300,-966.45,7.497e-05,2]
[344386822,1733401842311,-500.0,7.497e-05,2]
[344386823,1733401842322,-966.45,7.497e-05,2]
[344386824,1733401842333,-966.45,7.497e-05,2]
[344386825,1733401842344,-966.45,7.497e-05,2]
[344386826,1733401842353,-966.45,7.497e-05,2]
[344386827,1733401842367,-966.45,7.497e-05,2]
[344386828,1733401842376,-966.45,7.497e-05,2]
[344386829,1733401842387,-966.45,7.497e-05,2]
[344386830,1733401842398,-500.0,7.497e-05,2]
[344386831,1733401842408,-809.5,7.497e-05,2]
[344386832,1733401842418,-809.5,7.497e-05,2]
[344386833,1733401842427,-809.5,7.497e-05,2]
[344386834,1733401842437,-809.5,7.497e-05,2]
[344386836,1733401842446,-695.33,7.497e-05,2]
[344386837,1733401842455,-500.0,7.497e-05,2]
[344386838,1733401842464,-500.0,7.498e-05,2]
[344386839,1733401842474,-500.0,7.498e-05,2]
[344386840,1733401842484,-500.0,7.498e-05,2]
[344386841,1733401842493,-500.0,7.498e-05,2]
[344386842,1733401842502,-500.0,7.498e-05,2]
[344386843,1733401842511,-500.0,7.498e-05,2]
[344386844,1733401842521,-500.0,7.498e-05,2]
[344386845,1733401842531,-500.0,7.498e-05,2]
[344386846,1733401842540,-500.0,7.498e-05,2]
[344386847,1733401842550,-500.0,7.498e-05,2]
[344386849,1733401842559,-500.0,7.498e-05,2]
[344386850,1733401842569,-500.0,7.498e-05,2]
[344386851,1733401842578,-500.0,7.498e-05,2]
[344386852,1733401842587,-500.0,7.498e-05,2]
[344386854,1733401842597,-500.0,7.498e-05,2]
[344386856,1733401842607,-500.0,7.498e-05,2]
[344386858,1733401842617,-500.0,7.498e-05,2]
[344386859,1733401842627,-500.0,7.498e-05,2]
[344386860,1733401842636,-562.20417806,7.498e-05,2]
[344386861,1733401842649,-500.0,7.498e-05,2]
[344386862,1733401842658,-500.0,7.498e-05,2]
[344386863,1733401842668,-500.0,7.498e-05,2]
[344386864,1733401842678,-500.0,7.498e-05,2]
[344386865,1733401842687,-853.55549533,7.498e-05,2]
[344386866,1733401842708,-145.12450467,7.498e-05,2]
[344386867,1733401842718,-492.66949533,7.498e-05,2]
[344386868,1733401842730,-506.01050467,7.498e-05,2]
[344386869,1733401842739,-998.68,7.498e-05,2]
[344386870,1733401842748,-998.68,7.498e-05,2]
[344386871,1733401842758,-998.68,7.498e-05,2]
[344386872,1733401842768,-998.68,7.498e-05,2]
[344386873,1733401842777,-998.68,7.498e-05,2]
[344386874,1733401842786,-998.68,7.498e-05,2]
[344386875,1733401842795,-998.68,7.498e-05,2]
[344386876,1733401842805,-998.68,7.498e-05,2]
[344386877,1733401842814,-998.68,7.498e-05,2]
[344386878,1733401842824,-998.68,7.498e-05,2]
[344386879,1733401842833,-998.68,7.498e-05,2]
[344386880,1733401842842,-500.0,7.498e-05,2]
[344386881,1733401842851,-500.0,7.498e-05,2]
[344386882,1733401842860,-500.0,7.498e-05,2]
[344386883,1733401842870,-500.0,7.498e-05,2]
[344386884,1733401842879,-500.0,7.498e-05,2]
[344386885,1733401842888,-500.0,7.498e-05,2]
[344386886,1733401842904,-500.0,7.498e-05,2]
[344386887,1733401842913,-217.27797788,7.498e-05,2]
[344386888,1733401842923,-539.03159338,7.498e-05,2]
[344386889,1733401842932,-500.0,7.498e-05,2]
[344386890,1733401842942,-500.0,7.498e-05,2]
[344386891,1733401842951,-500.0,7.498e-05,2]
[344386892,1733401842961,-500.0,7.498e-05,2]
[344386893,1733401842970,-500.0,7.498e-05,2]
[344386894,1733401842979,-500.0,7.498e-05,2]
[344386895,1733401842988,-1009.26,7.498e-05,2]
[344386896,1733401842998,-500.0,7.498e-05,2]
[344386897,1733401843007,-1009.26,7.498e-05,2]
[344386898,1733401843016,-500.0,7.498e-05,2]
[344386899,1733401843026,-1009.26,7.498e-05,2]
[344386900,1733401843035,-500.0,7.498e-05,2]
[344386901,1733401843044,-1009.26,7.498e-05,2]
[344386902,1733401843053,-500.0,7.498e-05,2]
[344386903,1733401843063,-1009.26,7.498e-05,2]
[344386906,1733401843315,-500.0,7.498e-05,2]
[344386907,1733401843324,-500.0,7.498e-05,2]
[344386908,1733401843334,-1009.26,7.498e-05,2]
[344386909,1733401843344,-500.0,7.498e-05,2]
[344386910,1733401843355,-1009.26,7.498e-05,2]
[344386911,1733401843365,-500.0,7.498e-05,2]
[344386912,1733401843374,-1009.26,7.498e-05,2]
[344386913,1733401843383,-500.0,7.498e-05,2]
[344386914,1733401843394,-1009.26,7.498e-05,2]
[344386915,1733401843406,-159.93541472,7.498e-05,2]
[344386916,1733401843416,-1009.26,7.498e-05,2]
[344386917,1733401843425,-1009.26,7.498e-05,2]
[344386918,1733401843436,-1009.26,7.498e-05,2]
[344386919,1733401843445,-1009.26,7.498e-05,2]
[344386920,1733401843455,-500.0,7.498e-05,2]
[344386921,1733401843465,-146.16928539,7.498e-05,2]
[344386922,1733401843480,-595.28071461,7.498e-05,2]
[344386923,1733401843490,-437.05128539,7.498e-05,2]
[344386924,1733401844159,-3817.83,7.497e-05,2]
[344386925,1733401844169,-3817.83,7.497e-05,2]
[344386926,1733401844179,-62.94871461,7.498e-05,2]
[344386927,1733401844189,-741.45,7.498e-05,2]
[344386928,1733401844199,-500.0,7.498e-05,2]
[344386929,1733401844208,-741.45,7.498e-05,2]
[344386930,1733401844218,-500.0,7.498e-05,2]
[344386931,1733401844228,-741.45,7.498e-05,2]
[344386932,1733401844237,-465.12331942,7.498e-05,2]
[344386933,1733401844246,-70.37278854,7.498e-05,2]
[344386934,1733401844258,-671.07721146,7.498e-05,2]
[344386935,1733401844268,-741.45,7.498e-05,2]
[344386936,1733401844277,-741.45,7.498e-05,2]
[344386937,1733401844287,-741.45,7.498e-05,2]
[344386938,1733401844296,-741.45,7.498e-05,2]
[344386939,1733401844306,-741.45,7.498e-05,2]
[344386940,1733401844315,-741.45,7.498e-05,2]
[344386941,1733401844324,-741.45,7.498e-05,2]
[344386942,1733401844334,-500.0,7.498e-05,2]
[344386943,1733401844344,-741.45,7.498e-05,2]
[344386944,1733401844357,-500.0,7.498e-05,2]
[344386945,1733401844366,-523.66,7.498e-05,2]
[344386946,1733401844375,-500.0,7.498e-05,2]
[344386947,1733401844385,-505.60660759,7.498e-05,2]
[344386948,1733401844399,-500.0,7.498e-05,2]
[344386949,1733401844409,-500.0,7.498e-05,2]
[344386950,1733401844418,-154.05618095,7.498e-05,2]
[344386951,1733401844460,-345.94381905,7.498e-05,2]
[344386952,1733401844470,-500.0,7.498e-05,2]
[344386953,1733401844480,-500.0,7.498e-05,2]
[344386954,1733401844490,-500.0,7.498e-05,2]
[344386955,1733401844499,-500.0,7.498e-05,2]
[344386956,1733401844508,-500.0,7.498e-05,2]
[344386957,1733401844518,-284.31271095,7.498e-05,2]
[344386958,1733401844530,-215.68728905,7.498e-05,2]
[344386959,1733401844540,-500.0,7.498e-05,2]
[344386960,1733401844550,-500.0,7.498e-05,2]
[344386961,1733401844559,-500.0,7.498e-05,2]
[344386962,1733401844568,-500.0,7.498e-05,2]
[344386963,1733401844578,-703.43,7.498e-05,2]
[344386964,1733401844587,-703.43,7.498e-05,2]
[344386965,1733401844596,-703.43,7.498e-05,2]
[344386966,1733401844606,-703.43,7.498e-05,2]
[344386967,1733401844615,-703.43,7.498e-05,2]
[344386968,1733401844624,-703.43,7.498e-05,2]
[344386969,1733401844633,-703.43,7.498e-05,2]
[344386970,1733401844642,-703.43,7.498e-05,2]
[344386971,1733401844656,-703.43,7.498e-05,2]
[344386972,1733401844666,-703.43,7.498e-05,2]
[344386973,1733401844675,-703.43,7.498e-05,2]
[344386974,1733401844685,-703.43,7.498e-05,2]
[344386975,1733401844694,-544.00776089,7.498e-05,2]
[344386976,1733401844707,-159.42223911,7.498e-05,2]
[344386977,1733401844716,-703.43,7.498e-05,2]
[344386978,1733401844725,-500.0,7.498e-05,2]
[344386979,1733401844735,-500.0,7.498e-05,2]
[344386980,1733401844744,-500.0,7.498e-05,2]
[344386981,1733401844753,-234.24460353,7.498e-05,2]
[344386982,1733401844762,-500.0,7.498e-05,2]
[344386983,1733401844771,-500.0,7.498e-05,2]
[344386984,1733401844781,-500.0,7.498e-05,2]
[344386985,1733401844790,-500.0,7.498e-05,2]
[344386986,1733401844799,-500.0,7.498e-05,2]
[344386987,1733401844808,-40.50351127,7.498e-05,2]
[344386988,1733401844821,-459.49648873,7.498e-05,2]
[344386989,1733401844830,-500.0,7.498e-05,2]
[344386990,1733401844839,-500.0,7.498e-05,2]
[344386991,1733401844848,-500.0,7.498e-05,2]
[344386992,1733401844857,-500.0,7.498e-05,2]
[344386993,1733401844867,-500.0,7.498e-05,2]
[344386994,1733401844876,-500.0,7.498e-05,2]
[344386995,1733401844885,-500.0,7.498e-05,2]
[344386996,1733401844895,-500.0,7.498e-05,2]
[344386997,1733401844908,-500.0,7.498e-05,2]
[344386998,1733401844918,-151.14994686,7.498e-05,2]
[344386999,1733401844927,-500.0,7.498e-05,2]
[344387000,1733401844936,-500.0,7.498e-05,2]
[344387001,1733401844946,-500.0,7.498e-05,2]
[344387002,1733401844955,-500.0,7.498e-05,2]
[344387003,1733401844964,-500.0,7.498e-05,2]
[344387004,1733401844975,-500.0,7.498e-05,2]
[344387005,1733401844984,-500.0,7.498e-05,2]
[344387006,1733401844993,-500.0,7.498e-05,2]
[344387007,1733401845003,-500.0,7.498e-05,2]
[344387008,1733401845012,-151.12920872,7.498e-05,2]
[344387009,1733401845021,-805.80814446,7.498e-05,2]
[344387010,1733401845034,-2015.20436744,7.498e-05,2]
[344387011,1733401845070,-121.9874881,7.498e-05,2]
[344387012,1733401845083,-500.0,7.498e-05,2]
[344387013,1733401845092,-189.57850886,7.498e-05,2]
[344387014,1733401845103,-2753.42149114,7.498e-05,2]
[344387015,1733401845112,-500.0,7.498e-05,2]
[344387016,1733401845121,-500.0,7.498e-05,2]
[344387017,1733401845130,-359.07850886,7.498e-05,2]
[344387018,1733401845141,-582.72853,7.498e-05,2]
[344387019,1733401845156,-1171.47795,7.498e-05,2]
[344387020,1733401845167,-434.67999985,7.498e-05,2]
[344387028,1733401845795,-1411.3,7.398e-05,2]
[344387029,1733401845807,-1088.7,7.398e-05,2]
[344387030,1733401845816,-89.28,7.488e-05,2]
[344387031,1733401845828,-1647.59033893,7.488e-05,2]
[344387032,1733401846203,-6595.257213,7.488e-05,2]
[344387033,1733401846227,-5154.27931165,7.488e-05,2]
[344387034,1733401846239,-226.59313642,7.488e-05,2]
[344387035,1733401846248,-395.03501129,7.498e-05,2]
[344387036,1733401846258,-500.0,7.498e-05,2]
[344387037,1733401846267,-2943.0,7.498e-05,2]
[344387038,1733401846276,-2943.0,7.498e-05,2]
[344387039,1733401846285,-417.36832662,7.498e-05,2]
[344387040,1733401846294,-2943.0,7.498e-05,2]
[344387041,1733401846303,-1328.61125674,7.498e-05,2]
[344387043,1733402096180,185.32,6.544e-05,2]
[344387047,1733402541979,250.0,9.02e-05,10]
[344387309,1733402752956,10000.0,0.0001021,14]
[344387456,1733402766956,40000.0,0.0001021,14]
[344387557,1733403031767,-150.0,7.342e-05,2]
[344387558,1733403031777,-494.65,7.343e-05,2]
[344387559,1733403031787,-28.55317,7.343e-05,2]
[344387560,1733403031799,-462.68683,7.343e-05,2]
[344387561,1733403031808,-492.3,7.343e-05,2]
[344387562,1733403031818,-495.15,7.343e-05,2]
[344387563,1733403031827,-491.35,7.343e-05,2]
[344387564,1733403031837,-501.19,7.344e-05,2]
[344387565,1733403031847,-508.91,7.344e-05,2]
[344387566,1733403031857,-1573.46418045,7.344e-05,2]
[344387567,1733403031868,-505.71,7.344e-05,2]
[344387568,1733403031877,-509.05,7.345e-05,2]
[344387569,1733403031887,-504.84,7.346e-05,2]
[344387570,1733403031900,-493.31,7.347e-05,2]
[344387571,1733403031910,-505.94,7.348e-05,2]
[344387572,1733403031919,-501.29,7.35e-05,2]
[344387573,1733403031929,-491.81,7.352e-05,2]
[344387574,1733403031938,-503.75,7.354e-05,2]
[344387575,1733403031947,-501.07,7.358e-05,2]
[344387576,1733403031957,-185.32,7.362e-05,2]
[344387577,1733403031966,-490.21,7.362e-05,2]
[344387578,1733403031976,-506.32,7.362e-05,2]
[344387579,1733403031985,-507.72,7.362e-05,2]
[344387580,1733403031994,-490.65,7.362e-05,2]
[344387581,1733403032003,-491.69,7.362e-05,2]
[344387582,1733403032012,-503.94,7.362e-05,2]
[344387583,1733403032022,-500.91,7.362e-05,2]
[344387584,1733403032032,-491.86,7.362e-05,2]
[344387585,1733403032041,-495.47,7.362e-05,2]
[344387586,1733403032051,-493.52,7.362e-05,2]
[344387587,1733403032061,-497.65,7.362e-05,2]
[344387588,1733403032071,-505.57,7.362e-05,2]
[344387589,1733403032080,-501.83,7.362e-05,2]
[344387590,1733403032090,-497.14,7.362e-05,2]
[344387591,1733403032100,-508.52,7.363e-05,2]
[344387592,1733403032109,-150.0,7.363e-05,2]
[344387593,1733403032119,-501.49,7.363e-05,2]
[344387594,1733403032129,-501.53,7.363e-05,2]
[344387595,1733403032139,-492.33,7.364e-05,2]
[344387596,1733403032152,-502.42,7.365e-05,2]
[344387597,1733403032163,-497.0,7.366e-05,2]
[344387598,1733403032172,-500.75,7.368e-05,2]
[344387599,1733403032182,-502.5,7.37e-05,2]
[344387600,1733403032191,-494.98,7.373e-05,2]
[344387601,1733403032202,-504.28,7.377e-05,2]
[344387602,1733403032212,-507.11,7.383e-05,2]
[344387603,1733403032221,-495.93,7.391e-05,2]
[344387604,1733403032231,-2500.0,7.397e-05,2]
[344387605,1733403032241,-505.95,7.397e-05,2]
[344387606,1733403032251,-493.07,7.398e-05,2]
[344387607,1733403032261,-494.06,7.398e-05,2]
[344387608,1733403032270,-506.94,7.398e-05,2]
[344387609,1733403032280,-493.53,7.398e-05,2]
[344387610,1733403032290,-509.96,7.398e-05,2]
[344387611,1733403032299,-504.25,7.398e-05,2]
[344387612,1733403032309,-494.0,7.398e-05,2]
[344387613,1733403032318,-150.0,7.4e-05,2]
[344387614,1733403032327,-150.0,7.4e-05,2]
[344387615,1733403032336,-150.0,7.4e-05,2]
[344387616,1733403032346,-150.0,7.4e-05,2]
[344387617,1733403032355,-150.0,7.4e-05,2]
[344387618,1733403032365,-150.0,7.4e-05,2]
[344387619,1733403032375,-150.0,7.4e-05,2]
[344387620,1733403032385,-150.0,7.4e-05,2]
[344387621,1733403032398,-150.0,7.4e-05,2]
[344387622,1733403032407,-150.0,7.4e-05,2]
[344387623,1733403032417,-150.0,7.4e-05,2]
[344387624,1733403032427,-150.0,7.4e-05,2]
[344387625,1733403032437,-300.0,7.4e-05,2]
[344387626,1733403032447,-375.0,7.425e-05,2]
[344387627,1733403032457,-364.12,7.43e-05,2]
[344387628,1733403032466,-500.0,7.473e-05,2]
[344387629,1733403032475,-2976.0,7.479e-05,2]
[344387630,1733403032485,-474.0,7.479e-05,2]
[344387631,1733403032494,-364.12,7.48e-05,2]
[344387632,1733403032503,-151.23,7.48e-05,2]
[344387633,1733403032513,-869.84,7.48e-05,2]
[344387634,1733403032522,-728.06,7.48e-05,2]
[344387635,1733403032531,-300.0,7.48e-05,2]
[344387636,1733403032541,-435.12,7.48e-05,2]
[344387637,1733403032550,-364.12,7.48e-05,2]
[344387638,1733403032561,-435.43,7.48e-05,2]
[344387639,1733403032571,-364.12,7.48e-05,2]
[344387640,1733403032581,-155.57,7.48e-05,2]
[344387641,1733403032591,-492.07,7.48e-05,2]
[344387642,1733403032601,-504.06,7.481e-05,2]
[344387643,1733403032610,-502.5,7.483e-05,2]
[344387644,1733403032619,-500.83,7.486e-05,2]
[344387645,1733403032629,-566.0,7.488e-05,2]
[344387646,1733403032638,-1262.0,7.488e-05,2]
[344387647,1733403032651,-2003.0,7.488e-05,2]
[344387648,1733403032661,-631.0,7.488e-05,2]
[344387649,1733403032671,-150.0,7.488e-05,2]
[344387650,1733403032680,-1893.0,7.488e-05,2]
[344387651,1733403032690,-563.0,7.488e-05,2]
[344387652,1733403032702,-3761.0,7.488e-05,2]
[344387653,1733403032712,-816.0,7.488e-05,2]
[344387654,1733403032721,-1252.0,7.488e-05,2]
[344387655,1733403032730,-3529.0,7.488e-05,2]
[344387656,1733403032741,-535.0,7.488e-05,2]
[344387657,1733403032750,-973.0,7.488e-05,2]
[344387658,1733403032760,-5963.0,7.488e-05,2]
[344387659,1733403032769,-1166.0,7.488e-05,2]
[344387660,1733403032780,-150.0,7.488e-05,2]
[344387661,1733403032790,-12862.61,7.488e-05,2]
[344387662,1733403032799,-150.0,7.488e-05,2]
[344387663,1733403032809,-500.0,7.496e-05,2]
[344387664,1733403032819,-500.0,7.496e-05,2]
[344387665,1733403032828,-500.0,7.496e-05,2]
[344387666,1733403032838,-500.0,7.496e-05,2]
[344387667,1733403032847,-431.57941003,7.496e-05,2]
[344387668,1733403032860,-68.42058997,7.496e-05,2]
[344387669,1733403032872,-502.40707179,7.496e-05,2]
[344387670,1733403032881,-500.0,7.496e-05,2]
[344387671,1733403032891,-556.06349875,7.496e-05,2]
[344387672,1733403032905,-303.25959638,7.496e-05,2]
[344387673,1733403032915,-500.0,7.496e-05,2]
[344387674,1733403032925,-500.0,7.496e-05,2]
[344387675,1733403032935,-532.32,7.496e-05,2]
[344387676,1733403032944,-500.0,7.496e-05,2]
[344387677,1733403032954,-500.0,7.496e-05,2]
[344387678,1733403032963,-500.0,7.496e-05,2]
[344387679,1733403032973,-500.0,7.496e-05,2]
[344387680,1733403032987,-500.0,7.496e-05,2]
[344387681,1733403032996,-500.0,7.496e-05,2]
[344387682,1733403033007,-500.0,7.496e-05,2]
[344387683,1733403033017,-500.0,7.496e-05,2]
[344387684,1733403033027,-500.0,7.496e-05,2]
[344387685,1733403033036,-500.0,7.496e-05,2]
[344387686,1733403033046,-500.0,7.496e-05,2]
[344387687,1733403033056,-500.0,7.496e-05,2]
[344387688,1733403033065,-500.0,7.496e-05,2]
[344387689,1733403033076,-500.78648663,7.496e-05,2]
[344387690,1733403033086,-500.0,7.496e-05,2]
[344387691,1733403033095,-500.0,7.496e-05,2]
[344387692,1733403033105,-500.0,7.496e-05,2]
[344387693,1733403033115,-500.0,7.496e-05,2]
[344387694,1733403033126,-500.0,7.496e-05,2]
[344387695,1733403033136,-500.0,7.496e-05,2]
[344387696,1733403033364,-500.0,7.496e-05,2]
[344387697,1733403033377,-483.56051162,7.496e-05,2]
[344387698,1733403033387,-500.0,7.496e-05,2]
[344387699,1733403033400,-500.0,7.496e-05,2]
[344387700,1733403033410,-500.0,7.496e-05,2]
[344387701,1733403033420,-500.0,7.496e-05,2]
[344387702,1733403033430,-500.0,7.496e-05,2]
[344387703,1733403033439,-500.0,7.496e-05,2]
[344387704,1733403033449,-500.0,7.496e-05,2]
[344387705,1733403033459,-500.0,7.496e-05,2]
[344387706,1733403033468,-500.0,7.496e-05,2]
[344387707,1733403033478,-500.0,7.496e-05,2]
[344387708,1733403033487,-500.0,7.496e-05,2]
[344387709,1733403033497,-500.0,7.496e-05,2]
[344387710,1733403033506,-500.0,7.496e-05,2]
[344387711,1733403033516,-500.0,7.496e-05,2]
[344387712,1733403033526,-500.0,7.496e-05,2]
[344387713,1733403033536,-500.0,7.496e-05,2]
[344387714,1733403033545,-500.0,7.496e-05,2]
[344387715,1733403033556,-500.0,7.496e-05,2]
[344387716,1733403033566,-500.0,7.496e-05,2]
[344387717,1733403033575,-500.0,7.496e-05,2]
[344387718,1733403033584,-500.0,7.496e-05,2]